fUSD/lending_fUSD_20250505
["ID","MTS","AMOUNT","RATE_DAILY","PERIOD"]
[360024336,1746485445682,-450.0,0.00019999,2]
[360024338,1746485445691,-450.0,0.00019999,2]
[360024340,1746485445701,-450.0,0.00019999,2]
[360024343,1746485445712,-341.67326743,0.00019999,2]
[360024345,1746485445721,-270.13,0.00019999,2]
[360024347,1746485445731,-450.0,0.00019999,2]
[360024349,1746485445740,-450.0,0.00019999,2]
[360024351,1746485445750,-579.82,0.00019999,2]
[360024353,1746485445760,-151.0,0.00019999,2]
[360024355,1746485445769,-151.0,0.00019999,2]
[360024357,1746485445779,-1447.6,0.00019999,2]
[360024359,1746485445788,-1447.6,0.00019999,2]
[360024361,1746485445799,-1447.6,0.00019999,2]
[360024363,1746485445808,-1447.6,0.00019999,2]
[360024364,1746485445818,-1447.6,0.00019999,2]
[360024367,1746485445828,-1447.6,0.00019999,2]
[360024369,1746485445839,-1447.6,0.00019999,2]
[360024371,1746485445848,-1447.6,0.00019999,2]
[360024373,1746485445857,-1447.6,0.00019999,2]
[360024375,1746485445866,-1447.6,0.00019999,2]
[360024377,1746485445875,-1447.6,0.00019999,2]
[360024379,1746485445884,-1447.6,0.00019999,2]
[360024381,1746485445894,-1447.61616671,0.00019999,2]
[360024382,1746485445903,-151.0,0.00019999,2]
[360024385,1746485445914,-151.0,0.00019999,2]
[360024387,1746485445924,-905.38,0.00019999,2]
[360024389,1746485445933,-905.38,0.00019999,2]
[360024391,1746485445942,-905.38,0.00019999,2]
[360024393,1746485445952,-905.38,0.00019999,2]
[360024394,1746485445961,-905.38,0.00019999,2]
[360024396,1746485445970,-905.38,0.00019999,2]
[360024399,1746485445979,-905.38,0.00019999,2]
[360024400,1746485445991,-905.38,0.00019999,2]
[360024402,1746485446000,-905.38,0.00019999,2]
[360024404,1746485446009,-905.38,0.00019999,2]
[360024406,1746485446018,-905.38,0.00019999,2]
[360024408,1746485446028,-905.38,0.00019999,2]
[360024410,1746485446037,-905.38,0.00019999,2]
[360024412,1746485446046,-905.38,0.00019999,2]
[360024414,1746485446055,-905.38,0.00019999,2]
[360024416,1746485446065,-905.38,0.00019999,2]
[360024418,1746485446074,-905.38,0.00019999,2]
[360024420,1746485446083,-905.38,0.00019999,2]
[360024422,1746485446093,-905.56,0.00019999,2]
[360024424,1746485446102,-450.0,0.00019999,2]
[360024426,1746485446111,-450.0,0.00019999,2]
[360024428,1746485446122,-1187.52,0.00019999,2]
[360024430,1746485446131,-450.0,0.00019999,2]
[360024432,1746485446141,-1187.52,0.00019999,2]
[360024434,1746485446150,-450.0,0.00019999,2]
[360024436,1746485446159,-473.57859752,0.00019999,2]
[360024468,1746485446454,-713.94140248,0.00019999,2]
[360024470,1746485446464,-450.0,0.00019999,2]
[360024472,1746485446473,-1187.52,0.00019999,2]
[360024474,1746485446483,-450.0,0.00019999,2]
[360024476,1746485446492,-1187.52,0.00019999,2]
[360024478,1746485446502,-450.0,0.00019999,2]
[360024480,1746485446511,-1187.52,0.00019999,2]
[360024482,1746485446521,-450.0,0.00019999,2]
[360024484,1746485446530,-1187.52,0.00019999,2]
[360024486,1746485446539,-450.0,0.00019999,2]
[360024488,1746485446549,-1187.52,0.00019999,2]
[360024490,1746485446558,-328.04388837,0.00019999,2]
[360024492,1746485446567,-1187.52,0.00019999,2]
[360024494,1746485446577,-1187.52,0.00019999,2]
[360024496,1746485446586,-1187.52,0.00019999,2]
[360024498,1746485446596,-1187.52,0.00019999,2]
[360024501,1746485446606,-1187.52,0.00019999,2]
[360024502,1746485446615,-1187.52,0.00019999,2]
[360024504,1746485446625,-1187.52,0.00019999,2]
[360024506,1746485446635,-1187.52,0.00019999,2]
[360024509,1746485446645,-1187.52,0.00019999,2]
[360024510,1746485446654,-1187.52,0.00019999,2]
[360024513,1746485446663,-1187.54,0.00019999,2]
[360024515,1746485446675,-642.62,0.00019999,2]
[360024517,1746485446685,-642.62,0.00019999,2]
[360024519,1746485446695,-642.62,0.00019999,2]
[360024521,1746485446704,-642.62,0.00019999,2]
[360024523,1746485446714,-642.62,0.00019999,2]
[360024525,1746485446723,-642.62,0.00019999,2]
[360024527,1746485446732,-642.62,0.00019999,2]
[360024529,1746485446743,-642.62,0.00019999,2]
[360024531,1746485446752,-642.62,0.00019999,2]
[360024533,1746485446762,-642.62,0.00019999,2]
[360024535,1746485446771,-642.62,0.00019999,2]
[360024537,1746485446780,-642.62,0.00019999,2]
[360024539,1746485446789,-642.62,0.00019999,2]
[360024541,1746485446799,-642.62,0.00019999,2]
[360024543,1746485446808,-642.62,0.00019999,2]
[360024545,1746485446818,-642.62,0.00019999,2]
[360024547,1746485446827,-642.62,0.00019999,2]
[360024549,1746485446837,-642.62,0.00019999,2]
[360024551,1746485446847,-642.75734687,0.00019999,2]
[360024553,1746485446856,-796.96,0.00019999,2]
[360024555,1746485446866,-796.96,0.00019999,2]
[360024557,1746485446875,-796.96,0.00019999,2]
[360024559,1746485446890,-796.96,0.00019999,2]
[360024561,1746485446900,-796.96,0.00019999,2]
[360024563,1746485446909,-796.96,0.00019999,2]
[360024565,1746485446921,-796.96,0.00019999,2]
[360024567,1746485446931,-796.96,0.00019999,2]
[360024569,1746485446940,-796.96,0.00019999,2]
[360024571,1746485446950,-796.96,0.00019999,2]
[360024574,1746485446963,-796.96,0.00019999,2]
[360024575,1746485446972,-796.96,0.00019999,2]
[360024578,1746485446981,-796.96,0.00019999,2]
[360024580,1746485446993,-797.1850063,0.00019999,2]
[360024582,1746485447004,-151.0,0.00019999,2]
[360024584,1746485447017,-151.0,0.00019999,2]
[360024586,1746485447027,-151.0,0.00019999,2]
[360024588,1746485447037,-151.0,0.00019999,2]
[360024590,1746485447048,-151.0,0.00019999,2]
[360024592,1746485447057,-150.0,0.00019999,2]
[360024594,1746485447066,-151.0,0.00019999,2]
[360024596,1746485447075,-151.0,0.00019999,2]
[360024598,1746485447085,-151.0,0.00019999,2]
[360024600,1746485447095,-151.0,0.00019999,2]
[360024602,1746485447105,-150.0,0.00019999,2]
[360024604,1746485447115,-968.31,0.00019999,2]
[360024606,1746485447125,-452.67,0.00019999,2]
[360024608,1746485447134,-968.31,0.00019999,2]
[360024610,1746485447144,-500.0,0.00019999,2]
[360024612,1746485447159,-452.67,0.00019999,2]
[360024614,1746485447169,-968.31,0.00019999,2]
[360024616,1746485447179,-452.67,0.00019999,2]
[360024618,1746485447190,-452.67,0.00019999,2]
[360024620,1746485447199,-968.31,0.00019999,2]
[360024622,1746485447209,-452.67,0.00019999,2]
[360024624,1746485447223,-968.31,0.00019999,2]
[360024626,1746485447235,-452.67,0.00019999,2]
[360024628,1746485447245,-968.31,0.00019999,2]
[360024630,1746485447255,-452.67,0.00019999,2]
[360024632,1746485447265,-452.67,0.00019999,2]
[360024634,1746485447275,-968.31,0.00019999,2]
[360024636,1746485447284,-452.67,0.00019999,2]
[360024638,1746485447294,-968.31,0.00019999,2]
[360024640,1746485447303,-452.67,0.00019999,2]
[360024642,1746485447313,-968.31,0.00019999,2]
[360024644,1746485447323,-452.67,0.00019999,2]
[360024646,1746485447335,-968.31,0.00019999,2]
[360024648,1746485447345,-452.67,0.00019999,2]
[360024650,1746485447355,-968.31,0.00019999,2]
[360024653,1746485447366,-452.67,0.00019999,2]
[360024655,1746485447377,-968.31,0.00019999,2]
[360024657,1746485447386,-452.67,0.00019999,2]
[360024659,1746485447396,-968.39,0.00019999,2]
[360024661,1746485447407,-452.67,0.00019999,2]
[360024663,1746485447417,-452.67,0.00019999,2]
[360024665,1746485447426,-452.67,0.00019999,2]
[360024667,1746485447436,-452.67,0.00019999,2]
[360024669,1746485447446,-452.7,0.00019999,2]
[360024671,1746485447456,-150.0,0.00019999,2]
[360024673,1746485447466,-150.0,0.00019999,2]
[360024675,1746485447475,-8680.27,0.00019999,2]
[360024677,1746485447485,-534.89975856,0.00019999,2]
[360024679,1746485447499,-1446.4819446,0.00019999,2]
[360024685,1746485447715,-500.0,0.00019783,2]
[360024686,1746485447726,-500.0,0.00019783,2]
[360024687,1746485447737,-500.0,0.00019783,2]
[360024688,1746485447747,-500.0,0.00019783,2]
[360024690,1746485447757,-500.0,0.00019783,2]
[360024691,1746485447768,-500.0,0.00019783,2]
[360024692,1746485447777,-500.0,0.00019783,2]
[360024694,1746485447787,-500.0,0.00019783,2]
[360024696,1746485447797,-500.0,0.00019783,2]
[360024698,1746485447806,-500.0,0.00019783,2]
[360024700,1746485447817,-500.0,0.00019783,2]
[360024702,1746485447826,-500.0,0.00019783,2]
[360024705,1746485447837,-500.0,0.00019783,2]
[360024707,1746485447847,-270.79948748,0.00019783,2]
[360024709,1746485447856,-500.0,0.00019783,2]
[360024710,1746485447866,-500.0,0.00019783,2]
[360024713,1746485447876,-500.0,0.00019783,2]
[360024715,1746485447886,-500.0,0.00019783,2]
[360024717,1746485447896,-396.60476604,0.00019783,2]
[360024719,1746485447909,-103.39523396,0.00019783,2]
[360024721,1746485447921,-240.40792731,0.00019785,2]
[360024723,1746485447933,-209.59207269,0.00019785,2]
[360024725,1746485447943,-450.0,0.00019785,2]
[360024727,1746485447953,-450.0,0.00019785,2]
[360024729,1746485447963,-6698.88829684,0.00019999,2]
[360024731,1746485447974,-8680.27,0.00019999,2]
[360024733,1746485447984,-150.0,0.00019999,2]
[360024734,1746485447994,-8680.27,0.00019999,2]
[360024735,1746485448005,-8680.27,0.00019999,2]
[360024736,1746485448015,-8680.27,0.00019999,2]
[360024737,1746485448026,-8680.27,0.00019999,2]
[360024738,1746485448036,-6771.75567071,0.00019999,2]
[360024739,1746485448049,-1329.38,0.00019999,2]
[360024740,1746485448063,-579.13432929,0.00019999,2]
[360024741,1746485448074,-6729.66567072,0.00019999,2]
[360024742,1746485448087,-1950.60432928,0.00019999,2]
[360024743,1746485448097,-5436.6456702,0.00019999,2]
[360024744,1746485448151,-450.0,0.00019785,2]
[360024745,1746485448160,-66.74999999,0.00019785,2]
[360024747,1746485448557,-110.79231078,0.00019785,2]
[360024748,1746485448567,-376.35994099,0.00019785,2]
[360024749,1746485448577,-3243.6243298,0.00019999,2]
[360024750,1746485448587,-8680.27,0.00019999,2]
[360024751,1746485448597,-8680.27,0.00019999,2]
[360024752,1746485448608,-8680.27,0.00019999,2]
[360024753,1746485448617,-8680.27,0.00019999,2]
[360024754,1746485448626,-8680.27,0.00019999,2]
[360024755,1746485448636,-8680.27,0.00019999,2]
[360024756,1746485448645,-8680.27,0.00019999,2]
[360024757,1746485448655,-8680.27,0.00019999,2]
[360024758,1746485448665,-8680.43009362,0.00019999,2]
[360024759,1746485448675,-450.0,0.00019999,2]
[360024760,1746485448684,-450.0,0.00019999,2]
[360024761,1746485448694,-560.15,0.00019999,2]
[360024762,1746485448704,-747.07047896,0.00019999,2]
[360024763,1746485448715,-632575.08659787,0.0002,2]
[360024764,1746485448725,-130956.92440672,0.0002,2]
[360024765,1746485448735,-64298.25708919,0.0002,2]
[360024766,1746485448745,-808531.0740055,0.0002,2]
[360024767,1746485448758,-9520.0,0.0002,2]
[360024769,1746485448770,-23941.40358806,0.0002,2]
[360024770,1746485448783,-3266.48793025,0.0002,2]
[360024771,1746485449156,-15.82876404,0.0002,2]
[360024772,1746485449215,-453.0,0.00019783,2]
[360024773,1746485449247,-47.0,0.00019783,2]
[360024774,1746485449257,-500.0,0.00019783,2]
[360024775,1746485449267,-242.80702378,0.00019783,2]
[360024776,1746485449448,-257.19297622,0.00019783,2]
[360024777,1746485449457,-500.0,0.00019783,2]
[360024778,1746485449467,-500.0,0.00019783,2]
[360024779,1746485449477,-500.0,0.00019783,2]
[360024780,1746485449486,-500.0,0.00019783,2]
[360024781,1746485449496,-500.0,0.00019783,2]
[360024782,1746485449506,-500.0,0.00019783,2]
[360024783,1746485449515,-500.0,0.00019783,2]
[360024784,1746485449525,-500.0,0.00019783,2]
[360024785,1746485449534,-500.0,0.00019783,2]
[360024786,1746485449543,-500.0,0.00019783,2]
[360024787,1746485449552,-500.0,0.00019783,2]
[360024788,1746485449562,-500.0,0.00019783,2]
[360024789,1746485449571,-500.0,0.00019783,2]
[360024790,1746485449579,-500.0,0.00019783,2]
[360024791,1746485449589,-500.0,0.00019783,2]
[360024792,1746485449598,-270.79948748,0.00019783,2]
[360024793,1746485449607,-500.0,0.00019783,2]
[360024794,1746485449616,-554.72561738,0.00019785,2]
[360024795,1746485449626,-450.0,0.00019785,2]
[360024796,1746485449635,-452.27353329,0.00019785,2]
[360024797,1746485449644,-450.0,0.00019785,2]
[360024798,1746485449653,-10523.25371195,0.0002,2]
[360024799,1746485449665,-604.0,0.0002,2]
[360024800,1746485449676,-28569.9,0.0002,2]
[360024809,1746485554513,4959.1,0.00019038,2]
[360024816,1746485727312,1134.5955861,0.0003013,120]
[360024821,1746485848094,1000.0,0.0001889,2]
[360024822,1746485960399,180.01,0.00018877,2]
[360024823,1746485960882,180.01,0.00028316,120]
[360024824,1746486052788,250.0,0.00017,2]
[360024825,1746486053875,300.0,0.00019,2]
[360024826,1746486055716,1014.0,0.000194,2]
[360024827,1746486097910,159.67,0.00018867,2]
[360024828,1746486214775,-159.41061053,0.00019581,2]
[360024838,1746486329705,696.24,0.00016996,2]
[360024839,1746486330135,358.84674103,0.0001926,2]
[360024840,1746486330157,337.39325897,0.0001926,2]
[360024842,1746486363408,-6.91938947,0.00019581,2]
[360024843,1746486363443,-200.0,0.00019582,2]
[360024844,1746486363479,-73.75657439,0.00019588,2]
[360024845,1746486418763,159.41061053,0.00019499,2]
[360024852,1746486631818,-250.0,0.00019582,2]
[360024853,1746486631828,-200.0,0.00019582,2]
[360024854,1746486631837,-200.0,0.00019583,2]
[360024855,1746486631848,-200.0,0.00019584,2]
[360024856,1746486631858,-199.40843781,0.00019588,2]
[360024857,1746486631870,-7.99156219,0.00019588,2]
[360024858,1746486631879,-555.2689041,0.00019599,2]
[360024859,1746486631890,-644.7310959,0.00019599,2]
[360024860,1746486631899,-300.0,0.00019599,2]
[360024861,1746486631908,-1143.8031763,0.000196,2]
[360024862,1746486631917,-1031.4644283,0.000196,2]
[360024863,1746486631926,-1014.0,0.000196,2]
[360024864,1746486631935,-200.0,0.000196,2]
[360024865,1746486631944,-735.0673,0.00019685,2]
[360024866,1746486631954,-151.0,0.00019773,2]
[360024867,1746486631965,-151.0,0.00019773,2]
[360024868,1746486631975,-668.65185757,0.00019773,2]
[360024869,1746486631984,-450.0,0.00019785,2]
[360024870,1746486631993,-450.0,0.00019785,2]
[360024871,1746486632003,-447.69776053,0.00019785,2]
[360024872,1746486632013,-450.0,0.00019785,2]
[360024873,1746486632023,-560.55,0.00019785,2]
[360024874,1746486632034,-450.0,0.00019785,2]
[360024875,1746486632045,-450.0,0.00019785,2]
[360024876,1746486632056,-494.41,0.00019785,2]
[360024877,1746486632065,-509.14042241,0.00019785,2]
[360024878,1746486632077,-450.0,0.00019785,2]
[360024879,1746486632087,-450.0,0.00019785,2]
[360024880,1746486632096,-450.0,0.00019785,2]
[360024881,1746486632105,-450.0,0.00019785,2]
[360024882,1746486632114,-450.0,0.00019785,2]
[360024883,1746486632123,-450.0,0.00019785,2]
[360024885,1746486632132,-300.0,0.00019785,2]
[360024886,1746486632141,-470.63,0.00019785,2]
[360024887,1746486632151,-450.0,0.00019785,2]
[360024889,1746486632160,-450.0,0.00019785,2]
[360024891,1746486632170,-450.0,0.00019785,2]
[360024893,1746486632179,-450.0,0.00019785,2]
[360024895,1746486632189,-450.0,0.00019785,2]
[360024897,1746486632199,-450.0,0.00019785,2]
[360024899,1746486632209,-450.0,0.00019785,2]
[360024901,1746486632218,-450.0,0.00019785,2]
[360024903,1746486632227,-450.0,0.00019785,2]
[360024905,1746486632236,-450.0,0.00019785,2]
[360024907,1746486632246,-452.95669056,0.00019785,2]
[360024908,1746486632255,-450.0,0.00019785,2]
[360024910,1746486632265,-450.0,0.00019785,2]
[360024912,1746486632274,-450.0,0.00019785,2]
[360024914,1746486632283,-530.54859394,0.00019785,2]
[360024916,1746486632292,-450.0,0.00019785,2]
[360024918,1746486632301,-450.0,0.00019785,2]
[360024920,1746486632310,-450.0,0.00019785,2]
[360024922,1746486632320,-450.0,0.00019785,2]
[360024924,1746486632329,-450.0,0.00019785,2]
[360024926,1746486632338,-451.76,0.00019785,2]
[360024928,1746486632347,-450.0,0.00019785,2]
[360024930,1746486632356,-450.0,0.00019785,2]
[360024932,1746486632365,-450.0,0.00019785,2]
[360024934,1746486632374,-450.0,0.00019785,2]
[360024936,1746486632383,-450.0,0.00019785,2]
[360024938,1746486632392,-450.0,0.00019785,2]
[360024940,1746486632401,-450.0,0.00019785,2]
[360024941,1746486632410,-460.0,0.00019785,2]
[360024943,1746486632420,-450.0,0.00019785,2]
[360024945,1746486632429,-450.0,0.00019785,2]
[360024947,1746486632438,-450.0,0.00019785,2]
[360024949,1746486632447,-451.62,0.00019785,2]
[360024950,1746486632456,-450.0,0.00019785,2]
[360024951,1746486632465,-200.64421851,0.00019785,2]
[360024952,1746486632480,-249.35578149,0.00019785,2]
[360024953,1746486632490,-154.12705526,0.00019785,2]
[360024954,1746486632498,-469.84,0.00019785,2]
[360024955,1746486632507,-202.6477267,0.00019785,2]
[360024956,1746486632517,-450.0,0.00019785,2]
[360024957,1746486632526,-450.0,0.00019785,2]
[360024958,1746486632535,-256.5,0.00019785,2]
[360024959,1746486632544,-450.0,0.00019785,2]
[360024960,1746486632553,-450.0,0.00019785,2]
[360024961,1746486632562,-450.0,0.00019785,2]
[360024962,1746486632571,-98.74194454,0.00019785,2]
[360024963,1746486632587,-351.25805546,0.00019785,2]
[360024964,1746486632596,-101.69205486,0.00019785,2]
[360024965,1746486632610,-348.30794514,0.00019785,2]
[360024966,1746486632619,-248.53322083,0.00019785,2]
[360024968,1746486632635,-201.46677917,0.00019785,2]
[360024970,1746486632644,-510.62,0.00019785,2]
[360024972,1746486632653,-450.0,0.00019785,2]
[360024974,1746486632662,-450.0,0.00019785,2]
[360024976,1746486632673,-124.50725299,0.00019785,2]
[360024979,1746486632684,-359.81274701,0.00019785,2]
[360024981,1746486632694,-363.2732375,0.00019785,2]
[360025077,1746486637974,-86.7267625,0.00019785,2]
[360025079,1746486637985,-450.0,0.00019785,2]
[360025081,1746486637995,-122.08866762,0.00019785,2]
[360025082,1746486638007,-327.91133238,0.00019785,2]
[360025083,1746486638016,-79.98282085,0.00019785,2]
[360025084,1746486638094,-443.46273426,0.00019785,2]
[360025085,1746486638105,-6.53444489,0.00019785,2]
[360025086,1746486638115,-450.0,0.00019785,2]
[360025087,1746486638124,-450.0,0.00019785,2]
[360025088,1746486638134,-532.26,0.00019785,2]
[360025089,1746486638143,-450.0,0.00019785,2]
[360025090,1746486638153,-450.0,0.00019785,2]
[360025091,1746486638162,-450.0,0.00019785,2]
[360025092,1746486638171,-450.0,0.00019785,2]
[360025093,1746486638180,-450.0,0.00019785,2]
[360025094,1746486638190,-450.0,0.00019785,2]
[360025095,1746486638199,-564.98,0.00019785,2]
[360025096,1746486638208,-450.0,0.00019785,2]
[360025097,1746486638218,-450.0,0.00019785,2]
[360025098,1746486638227,-450.0,0.00019785,2]
[360025099,1746486638236,-450.0,0.00019785,2]
[360025100,1746486638246,-551.16,0.00019785,2]
[360025101,1746486638255,-450.0,0.00019785,2]
[360025102,1746486638264,-450.0,0.00019785,2]
[360025103,1746486638274,-450.0,0.00019785,2]
[360025104,1746486638285,-496.59,0.00019785,2]
[360025105,1746486638295,-450.0,0.00019785,2]
[360025106,1746486638305,-500.0,0.00019785,2]
[360025107,1746486638314,-450.0,0.00019785,2]
[360025108,1746486638324,-1014.0,0.000198,2]
[360025109,1746486638333,-842.93969968,0.00019873,2]
[360025110,1746486638343,-842.93969962,0.00019876,2]
[360025111,1746486638352,-842.93969962,0.00019879,2]
[360025112,1746486638362,-842.93969962,0.00019882,2]
[360025113,1746486638371,-162.94,0.00019885,2]
[360025114,1746486638381,-842.93969962,0.00019885,2]
[360025115,1746486638390,-842.93969962,0.00019888,2]
[360025116,1746486638399,-842.93969962,0.00019891,2]
[360025117,1746486638408,-842.93969962,0.00019894,2]
[360025118,1746486638418,-842.93969962,0.00019897,2]
[360025120,1746486638427,-184.97566675,0.00019898,2]
[360025122,1746486638437,-184.97566674,0.00019899,2]
[360025124,1746486638446,-334.30700728,0.000199,2]
[360025125,1746486638455,-1058.12198478,0.000199,2]
[360025127,1746486638464,-842.93969962,0.000199,2]
[360025129,1746486638474,-289.4744609,0.000199,2]
[360025131,1746486638483,-184.97566674,0.000199,2]
[360025133,1746486638493,-7412.72840466,0.000199,2]
[360025135,1746486638502,-5931.0,0.00019959,2]
[360025137,1746486638512,-500.0,0.00019973,2]
[360025139,1746486638522,-500.0,0.00019973,2]
[360025141,1746486638531,-500.0,0.00019973,2]
[360025143,1746486638540,-500.0,0.00019973,2]
[360025145,1746486638550,-500.0,0.00019973,2]
[360025147,1746486638559,-924.6,0.00019976,2]
[360025149,1746486638569,-450.0,0.00019984,2]
[360025151,1746486638579,-450.0,0.00019984,2]
[360025153,1746486638588,-450.0,0.00019984,2]
[360025155,1746486638598,-450.0,0.00019984,2]
[360025156,1746486638611,-500.0,0.00019984,2]
[360025157,1746486638621,-500.0,0.00019984,2]
[360025158,1746486638631,-500.0,0.00019984,2]
[360025159,1746486638641,-500.0,0.00019984,2]
[360025160,1746486638651,-500.0,0.00019984,2]
[360025161,1746486638661,-435.70304898,0.00019984,2]
[360025162,1746486638670,-500.0,0.00019984,2]
[360025163,1746486638680,-500.0,0.00019984,2]
[360025164,1746486638689,-500.0,0.00019984,2]
[360025165,1746486638698,-450.0,0.00019984,2]
[360025166,1746486638708,-450.0,0.00019984,2]
[360025167,1746486638717,-576.7,0.00019984,2]
[360025168,1746486638727,-450.0,0.00019984,2]
[360025169,1746486638736,-450.0,0.00019984,2]
[360025170,1746486638745,-450.0,0.00019984,2]
[360025171,1746486638755,-500.0,0.00019984,2]
[360025172,1746486638764,-450.0,0.00019984,2]
[360025173,1746486638774,-450.0,0.00019984,2]
[360025174,1746486638784,-450.0,0.00019984,2]
[360025175,1746486638794,-450.0,0.00019984,2]
[360025176,1746486638803,-450.0,0.00019984,2]
[360025177,1746486638812,-450.0,0.00019984,2]
[360025178,1746486638822,-450.0,0.00019984,2]
[360025179,1746486638832,-450.0,0.00019984,2]
[360025180,1746486638841,-450.0,0.00019984,2]
[360025182,1746486638851,-450.0,0.00019984,2]
[360025183,1746486638860,-450.0,0.00019984,2]
[360025184,1746486638870,-450.0,0.00019984,2]
[360025186,1746486638879,-450.0,0.00019984,2]
[360025187,1746486638888,-450.0,0.00019984,2]
[360025190,1746486638897,-203.372984,0.00019984,2]
[360025192,1746486638907,-450.0,0.00019984,2]
[360025193,1746486638916,-450.0,0.00019984,2]
[360025196,1746486638925,-388.949689,0.00019984,2]
[360025198,1746486638935,-450.0,0.00019984,2]
[360025200,1746486638944,-450.0,0.00019984,2]
[360025202,1746486638954,-290.81358307,0.00019985,2]
[360025204,1746486638963,-450.0,0.00019985,2]
[360025206,1746486638972,-450.0,0.00019985,2]
[360025208,1746486638982,-450.0,0.00019985,2]
[360025210,1746486638991,-250.0,0.00019985,2]
[360025212,1746486639000,-450.0,0.00019985,2]
[360025214,1746486639009,-470.0,0.00019985,2]
[360025216,1746486639019,-450.0,0.00019985,2]
[360025217,1746486639028,-450.0,0.00019985,2]
[360025219,1746486639037,-562.00679849,0.00019985,2]
[360025221,1746486639046,-450.0,0.00019985,2]
[360025223,1746486639055,-450.0,0.00019985,2]
[360025226,1746486639066,-450.0,0.00019985,2]
[360025227,1746486639075,-450.0,0.00019985,2]
[360025230,1746486639084,-450.0,0.00019985,2]
[360025232,1746486639095,-450.0,0.00019985,2]
[360025234,1746486639104,-450.0,0.00019985,2]
[360025236,1746486639113,-450.0,0.00019985,2]
[360025238,1746486639123,-450.0,0.00019985,2]
[360025240,1746486639131,-450.0,0.00019985,2]
[360025242,1746486639142,-450.0,0.00019985,2]
[360025244,1746486639151,-450.0,0.00019985,2]
[360025246,1746486639160,-450.0,0.00019985,2]
[360025248,1746486639169,-450.0,0.00019985,2]
[360025250,1746486639179,-490.60779098,0.00019985,2]
[360025251,1746486639188,-450.0,0.00019985,2]
[360025253,1746486639197,-450.0,0.00019985,2]
[360025255,1746486639206,-450.0,0.00019985,2]
[360025258,1746486639216,-203.58666244,0.00019985,2]
[360025260,1746486639226,-450.0,0.00019985,2]
[360025261,1746486639235,-490.0,0.00019985,2]
[360025263,1746486639244,-450.0,0.00019985,2]
[360025265,1746486639253,-168.24125618,0.00019985,2]
[360025267,1746486639262,-490.0,0.00019985,2]
[360025269,1746486639272,-450.0,0.00019985,2]
[360025271,1746486639281,-450.0,0.00019985,2]
[360025273,1746486639290,-450.0,0.00019985,2]
[360025275,1746486639298,-509.49896181,0.00019985,2]
[360025277,1746486639307,-450.0,0.00019985,2]
[360025279,1746486639317,-450.0,0.00019985,2]
[360025281,1746486639326,-450.0,0.00019985,2]
[360025283,1746486639335,-459.53106383,0.00019985,2]
[360025285,1746486639345,-450.0,0.00019985,2]
[360025286,1746486639354,-450.0,0.00019985,2]
[360025288,1746486639363,-426.83684839,0.00019985,2]
[360025291,1746486639376,-23.16315161,0.00019985,2]
[360025292,1746486639385,-547.65532431,0.00019985,2]
[360025294,1746486639395,-450.0,0.00019985,2]
[360025295,1746486639404,-450.0,0.00019985,2]